Cogmind - Beta 15 @@@ ROGUE MODE // 2025.09.04 @ 17:29:49 Player: Tuja Result: Destroyed by B-74 Champion with Powered Hammer Performance ------------- Evolutions (9) 4500 Regions Visited (17) 3400 Robots Destroyed (133) 665 Value Destroyed (6848) 6848 Prototype IDs (55) 1100 Alien Tech Used (0) 0 Bonus (2223) 2223 TOTAL SCORE: 18736 Bonus ------- High Alert Combat Kills 552 Follower Combat Kills 496 Aligned with FarCom 300 Met Warlord at Base 500 MAIN.C Attacked Warlord 500 Warlord Defense Kills 94 Friendly Fire -219 Cogmind --------- Core Integrity 0/1600 Matter 196/300 Energy 600/600 System Corruption 75% Temperature Cool (0) Movement Walking (110) Location -1/Access Parts ------- > --- POWER (2) -------- Quantum Reactor Quantum Reactor > --- PROPULSION (5) --- Biometal Leg Biometal Leg > --- UTILITY (14) ----- Advanced Visual Processing Unit Improved Signal Interpreter Advanced Targeting Computer Advanced Target Analyzer Hacking Suite > --- WEAPON (4) ------- (None) > --- INVENTORY (5) ---- (None) Peak State ------------ > --- POWER ------------ Quantum Reactor Quantum Reactor > --- PROPULSION ------- Advanced Medium Treads Centrium Heavy Treads Biometal Heavy Treads > --- UTILITY ---------- Advanced Heat Sink Advanced Heat Sink Advanced Heat Sink Huge Storage Unit Advanced Visual Processing Unit Improved Signal Interpreter Experimental Melee Analysis Suite Centrium Light Armor Plating Focal Shield Advanced Force Field Hacking Suite Advanced Hacking Suite Advanced Hacking Suite Improved System Shield > --- WEAPON ----------- Phase Gun Enhanced Quantum Rifle Helical Railgun Helical Railgun > --- INVENTORY -------- Micro Fission Core Quantum Reactor Light Quantum Reactor Spiked Medium Treads Biometal Heavy Treads Wheel Impulse Thruster Impulse Thruster Array Impulse Thruster Array Compact Matter Pod Advanced Weight Redist. System ECM Suite Centrium Light Armor Plating Advanced Point Defense System Hacking Suite Hacking Suite Heavy Laser Phase Gun Enhanced Hardcell Cannon Micro-nuke Launcher Improved Remote Datajack Great Maul [Rating: 182] Favorites ----------- Power Light Ion Engine Engine Light Ion Engine Power Core Backup Power VII Reactor Quantum Reactor Propulsion Flying Fortress v7 Treads Biometal Heavy Treads Leg Biometal Leg Wheel Wheel Hover Unit Antigrav Array Flight Unit Flying Fortress v7 Utility Hacking Suite Device Advanced Heat Sink Storage Large Storage Unit Processor Advanced Visual Processing Unit Hackware Hacking Suite Protection Hardened Medium Armor Plating Weapon Gauss Rifle Energy Gun Phase Gun Energy Cannon Enhanced Nova Cannon Ballistic Gun Gauss Rifle Ballistic Cannon Heavy Gauss Cannon Launcher Ragnarok Missile Launcher Special Weapon Advanced Remote Datajack Impact Weapon Powered Hammer Slashing Weapon Mining Claw Piercing Weapon Spear Special Melee Weapon Improved Datajack Build | -11 -10 -10 -9 -9 -9 -8 -8 -7 -6 -5 -5 -5 -4 -4 -3 -2 -1 ------- Run | Yrd Mat Min Mat Min Exi Min Mat Fac Fac Fac Upp War Pro Fac Res Res Acc Slots Evolved 18 | . . . 2 . . . 2 2 2 2 . . . 2 2 2 2 Power 1 | . . . . . . . . . . . . . . . . . 1 Propulsion 3 | . . . 2 . . . . . . . . . . . 1 . . Utility 12 | . . . . . . . 2 2 2 2 . . . 1 1 1 1 Weapon 2 | . . . . . . . . . . . . . . 1 . 1 . Parts Attached 176 | 6 2 . 9 1 3 . 7 5 3 3 . 3 2 4 8 38 82 Power 20 | 1 . . 1 1 . . . . . . . . . 1 1 3 12 Engine 6 | 1 . . 1 1 . . . . . . . . . 1 1 1 . Core 1 | . . . . . . . . . . . . . . . . . 1 Reactor 13 | . . . . . . . . . . . . . . . . 2 11 Propulsion 35 | 2 . . 4 . 1 . 1 . . . . . . . 4 7 16 Treads 17 | 2 . . 4 . . . . . . . . . . . 2 4 5 Leg 5 | . . . . . . . . . . . . . . . . 1 4 Wheel 2 | . . . . . . . . . . . . . . . . . 2 Hover 2 | . . . . . . . . . . . . . . . . . 2 Flight 9 | . . . . . 1 . 1 . . . . . . . 2 2 3 Utility 74 | 1 1 . 2 . 2 . 3 3 3 3 . 2 . 2 3 19 30 Device 28 | . . . 2 . 1 . 1 . 2 1 . . . . 1 10 10 Storage 10 | 1 1 . . . . . . . . . . . . . . 3 5 Processor 13 | . . . . . 1 . 1 . 1 1 . 1 . 1 . 3 4 Hackware 16 | . . . . . . . . 3 . 1 . . . 1 2 . 9 Protection 7 | . . . . . . . 1 . . . . 1 . . . 3 2 Artifact . | . . . . . . . . . . . . . . . . . . Weapon 47 | 2 1 . 2 . . . 3 2 . . . 1 2 1 . 9 24 Energy Gun 18 | . 1 . 1 . . . . . . . . . 1 . . 3 12 Energy Cannon 3 | . . . . . . . . . . . . . . . . 2 1 Ballistic Gun 12 | 2 . . . . . . 3 . . . . . . 1 . 2 4 Ballistic Cannon 2 | . . . . . . . . . . . . . 1 . . . 1 Launcher 5 | . . . . . . . . . . . . . . . . 1 4 Special Weapon 1 | . . . . . . . . . . . . . . . . . 1 Impact Weapon 2 | . . . . . . . . . . . . 1 . . . . 1 Slashing Weapon 1 | . . . 1 . . . . . . . . . . . . . . Piercing Weapon 1 | . . . . . . . . 1 . . . . . . . . . Special Melee Weapon 2 | . . . . . . . . 1 . . . . . . . 1 . Unidentified Prototypes 14 | . . . . . . . 1 . . . . 2 . 1 1 3 6 Corrupted Parts 2 | . . . . . . . . . . . . . . . . . 2 System Corruption 10 | . . . . . . . . . . . . . . . . . 10 Parts Lost 101 | . . . 1 2 . . . . . . . . . . 1 24 73 Power 15 | . . . . 1 . . . . . . . . . . . 3 11 Propulsion 16 | . . . . . . . . . . . . . . . . 3 13 Utility 39 | . . . . . . . . . . . . . . . 1 12 26 Weapon 31 | . . . 1 1 . . . . . . . . . . . 6 23 Highest Loss Streak 20 | . . . 1 2 . . . . . . . . . . 1 20 19 To Critical Strikes 4 | . . . . . . . . . . . . . . . . . 4 Average Backups 13 | 2 6 8 10 11 11 10 11 13 12 14 15 14 14 13 12 15 14 Power 1 | . 1 1 1 2 2 4 2 2 2 2 2 2 2 1 . 1 1 Propulsion 3 | 1 2 3 3 4 4 4 3 4 4 4 4 3 3 3 3 4 3 Utility 4 | . . . 1 3 2 . 1 2 2 4 5 5 6 5 5 6 4 Weapon 3 | . 2 3 3 2 2 2 3 3 3 3 3 2 1 1 1 2 4 Tool/Special . | . . . . . . . . . . . . . . . . . . Unused Backups 44 | . . 2 6 . 2 1 7 2 . . . 3 . 1 3 7 10 Power 5 | . . . 1 . . 1 2 . . . . . . . . 1 . Propulsion 15 | . . 1 3 . 1 . 3 . . . . 1 . . . . 6 Utility 12 | . . . . . 1 . 1 . . . . 1 . 1 3 4 1 Weapon 9 | . . 1 1 . . . 1 1 . . . 1 . . . 2 2 Tool/Special 3 | . . . 1 . . . . 1 . . . . . . . . 1 Average Slot Usage (%) 78 | . 85 85 90 94 92 66 68 75 79 80 82 82 82 78 80 81 75 Engine 3 | . 14 14 11 5 11 11 9 7 6 5 5 5 5 5 4 . . Reactor 2 | . . . . . . . . . . . . . . . . 3 5 Treads 6 | . 28 28 36 44 34 . . . . . . . . . 1 10 6 Flight 3 | . . . . . 2 11 9 7 6 5 5 5 5 5 8 . 2 Device 10 | . . . 10 11 11 . 4 7 13 11 11 11 11 10 8 14 12 Storage 6 | . 14 14 11 11 11 11 9 7 6 5 5 5 5 5 4 4 7 Processor 10 | . . . . . . 11 17 2 6 8 11 11 17 15 12 7 11 Hackware 14 | . . . . . . . . 20 20 22 23 23 23 21 24 19 14 Protection 3 | . . . . . . . 2 6 5 5 5 4 . 5 4 5 2 Energy Gun 3 | . 12 14 9 11 11 9 . . . . . . . . . 3 5 Ballistic Gun 5 | . 15 14 11 11 11 11 11 7 5 4 5 5 3 . . 6 2 Ballistic Cannon 1 | . . . . . . . . . . . . . 1 5 4 1 1 Impact Weapon 1 | . . . . . . . . . . . . . 5 4 3 . 1 Peak Build Rating 182 | 6 7 7 23 23 41 40 52 59 65 75 72 83 79 88 113 151 182 Average Rating 91 | 4 6 6 17 20 25 39 47 56 64 71 72 72 76 83 98 121 132 On Entrance 52 | . 6 6 7 23 21 40 39 48 59 65 75 72 76 79 86 100 149 Naked Turns . | . . . . . . . . . . . . . . . . . . Heaviest Build 179 | 13 29 29 30 29 26 26 39 41 40 43 40 41 41 53 59 150 179 Greatest Support 190 | 40 40 40 80 80 80 50 50 50 50 50 50 50 50 50 130 183 190 Greatest Overweight (x) 33 | . . . . . . . 6 . . . . . . 1 1 1 33 Average Overweight (x) . | . . . . . . . . . . . . . . . . . . Largest Inventory Capacity 25 | 8 15 15 15 15 15 15 15 15 15 15 15 15 15 15 15 25 25 Average Capacity 16 | 7 13 15 15 15 15 15 15 15 15 15 15 15 15 15 15 19 17 Most Carried 25 | 4 7 13 15 15 15 14 15 15 13 15 15 15 15 15 15 25 25 Average Carried 14 | 2 6 10 13 14 14 11 11 13 12 14 15 14 14 14 14 17 16 Final Capacity 25 | 8 15 15 15 15 15 15 15 15 15 15 15 15 15 15 15 25 5 Final Carried 25 | 4 7 13 15 15 14 10 15 14 13 15 15 15 15 15 15 25 . Class Distribution -------------------- 27% | Hacker-Mutant 21% | Mutant 15% | Scavenger-Tank 9% | Hacker-Ninja 9% | Hacker-Tank 4% | Wizard-Mutant 4% | Wizard-Tank Dominant Class ---------------- Mutant | -10/Materials Mutant | -10/Mines Mutant | -9/Materials Mutant | -9/Mines Mutant | -9/Exiles Mutant | -8/Mines Mutant | -8/Materials Hacker-Mutant | -7/Factory Hacker-Mutant | -6/Factory Hacker-Mutant | -5/Factory Hacker-Mutant | -5/Upper Caves Hacker-Mutant | -5/Warlord Hacker-Mutant | -4/Proximity Caves Hacker-Ninja | -4/Factory Hacker-Ninja | -3/Research Scavenger-Tank | -2/Research Scavenger-Tank | -1/Access Resources | -11 -10 -10 -9 -9 -9 -8 -8 -7 -6 -5 -5 -5 -4 -4 -3 -2 -1 ----------- Run | Yrd Mat Min Mat Min Exi Min Mat Fac Fac Fac Upp War Pro Fac Res Res Acc Matter Collected 5870 | 255 . 37 169 27 . 47 198 30 . 31 . 354 70 286 457 1228 2681 Remotely . | . . . . . . . . . . . . . . . . . . Salvage Created 6449 | . . 86 298 61 . 47 213 30 . 31 . 138 115 275 432 1177 3546 Parts 296 | . . 6 20 8 . 5 13 5 . 2 . 3 1 7 15 40 171 Haulers Intercepted 1 | . . . 1 . . . . . . . . . . . . . . Recyclers Shooed 7 | . . . . . . . . . . . . . . . 1 . 6 Parts Field Recycled . | . . . . . . . . . . . . . . . . . . Retrieved Matter . | . . . . . . . . . . . . . . . . . . Parts Self-Destructed 1 | . . . . . . . . . . . . . 1 . . . . Prevented 1 | . . . . . . . . . . . . . 1 . . . . Kills | -11 -10 -10 -9 -9 -9 -8 -8 -7 -6 -5 -5 -5 -4 -4 -3 -2 -1 ------- Run | Yrd Mat Min Mat Min Exi Min Mat Fac Fac Fac Upp War Pro Fac Res Res Acc Combat Hostiles Destroyed 93 | . . 2 6 4 . 3 2 . . . . 1 1 3 4 14 53 Melee 3 | . . . . . . . 1 . . . . 1 . . . . 1 Guns 52 | . . 1 6 4 . 3 1 . . . . . . . 2 7 28 Cannons 19 | . . . . . . . . . . . . . 1 3 2 5 8 AOE 18 | . . 1 . . . . . . . . . . . . . 1 16 Classes Destroyed 17 | . . 1 3 . . . 3 . . 1 . 1 1 1 1 3 2 Worker 6 | . . . . . . . 1 . . . . . . 1 1 . 3 Builder 5 | . . . . . . . . . . . . . . . . . 5 Tunneler 1 | . . . . . . . . . . . . . . . 1 . . Hauler 1 | . . . 1 . . . . . . . . . . . . . . Recycler 8 | . . . . . . . 1 . . . . . . 1 . . 6 Mechanic 3 | . . . 1 . . . . . . . . . . . . 1 1 Operator 3 | . . . . . . . 2 1 . . . . . . . . . Watcher 12 | . . . . . . . . . . 1 . . . 1 5 1 4 Swarmer 25 | . . . 2 4 . 3 . . . . . . . . . . 16 Grunt 21 | . . 2 4 . . . 2 . . . . . . . . 9 4 Brawler 1 | . . . . . . . . . . . . . . . . 1 . Protector 1 | . . . . . . . . . . . . 1 . . . . . Sentry 4 | . . . . . . . . . . . . . 1 1 2 . . Hunter 11 | . . . . . . . . . . . . . . . . . 11 Programmer 26 | . . . . . . . . . . . . . . 2 2 . 22 Striker 1 | . . . . . . . . . . . . . . . . 1 . Executioner 3 | . . . . . . . . . . . . . . . . 3 . Thug 1 | . . . . . . . . . . . . 1 . . . . . Best Kill Streak 8 | . . 2 4 4 . 2 2 1 . 1 . 1 1 3 3 4 8 Combat Bots Only 7 | . . 2 4 4 . 2 1 . . . . 1 1 2 3 4 7 Max Kills in Single Turn 6 | . . 1 1 1 . 1 1 1 . 1 . 1 1 1 2 1 6 Gunslinging . | . . . . . . . . . . . . . . . . . . Exploded 6 | . . 1 . . . . . . . . . . . . . 1 6 Melee 1 | . . . . . . . 1 . . . . 1 . . . . 1 Uniques/NPCs Destroyed . | . . . . . . . . . . . . . . . . . . Combat | -11 -10 -10 -9 -9 -9 -8 -8 -7 -6 -5 -5 -5 -4 -4 -3 -2 -1 -------- Run | Yrd Mat Min Mat Min Exi Min Mat Fac Fac Fac Upp War Pro Fac Res Res Acc Hostile Shots Fired 1410 | . . 6 61 47 . 17 24 7 . 7 . 5 12 8 21 368 827 Missed 439 | . . 3 15 15 . 9 13 6 . 6 . 2 6 4 8 109 243 Deflected 1 | . . . . . . . . . . . . . . . . . 1 Hits 971 | . . 3 46 32 . 8 11 1 . 1 . 3 6 4 13 259 584 Melee 17 | . . . . . . . . . . . . . . . . 10 7 Projectile 954 | . . 3 46 32 . 8 11 1 . 1 . 3 6 4 13 249 577 AOE 1 | . . . . . . . . . . . . . . . . . 1 Critical Strikes 51 | . . 1 2 . . . . . . . . 1 . 1 2 13 31 Part Disruptions 3 | . . . . . . . . . . . . . . . . . 3 Damage Taken 20713 | . . 71 557 252 . 99 171 6 . 21 . 71 104 82 429 7013 11837 Core 3042 | . . 21 27 8 . 7 16 6 . . . . . . 46 1299 1612 Absorbed by Shields 1274 | . . . . . . . . . . . . 51 . . . . 1223 Reduced by Siege Mode 454 | . . . . . . . . . . . . . . . . 117 337 Redirected to Shielding 88 | . . . . . . . . . . . . . . . . 79 9 Ignored by Resistances 898 | . . . . . . . . . . . . . . . . . 898 Regen/Repaired (Parts) 15 | . . . . . . . . . . . . 6 . . . 9 . Core Remaining (%) 88 | 100 . 91 . . . 89 97 99 100 . . . 100 100 96 10 . Volleys Fired 387 | . 8 4 23 13 . 12 11 . . . . 10 14 21 24 49 198 Largest 4 | . 1 2 2 2 . 2 2 . . . . 1 1 3 3 4 4 Hottest 280 | . 40 60 60 60 . 60 56 . . . . 28 69 109 109 257 280 Shots Fired 891 | . 8 8 43 26 . 24 22 . . . . 10 14 29 43 150 514 Gun 727 | . 8 8 43 26 . 24 22 . . . . 10 12 8 19 116 431 Cannon 137 | . . . . . . . . . . . . . 2 21 24 33 57 Launcher 25 | . . . . . . . . . . . . . . . . 1 24 Special 2 | . . . . . . . . . . . . . . . . . 2 Kinetic 446 | . . 4 23 13 . 12 22 . . . . 10 11 29 43 84 195 Thermal 377 | . . . 20 13 . 12 . . . . . . 3 . . 61 268 Explosive 25 | . . . . . . . . . . . . . . . . 1 24 Electromagnetic 41 | . 8 4 . . . . . . . . . . . . . 4 25 Robot Hit Streak 20 | . . 4 13 6 . 7 4 . . . . 5 4 14 9 20 19 Robot Miss Streak 8 | . . 1 1 3 . 4 4 . . . . 2 . 2 2 2 8 Penetration Max 2 | . . . . . . . . . . . . 1 . . . 1 2 Secondary Targets 8 | . . . 2 2 . . . . . . . . . . . 2 2 Max Gunslinging Chain 1 | . . . 1 1 . . . . . . . . . . . 1 1 Shots Hit Robots 576 | . . 6 35 15 . 16 16 1 . 1 . 8 6 19 37 125 291 Core Hits 246 | . . 4 15 5 . 6 7 1 . 1 . 5 4 6 13 44 135 Critical Kills 6 | . . . . . . . . . . . . 1 . . 2 1 2 Critical Parts Destroyed 7 | . . . . . . . . . . . . . . 1 2 2 2 Critical Strikes 40 | . . . . . . . . . . . . 1 1 5 6 12 15 Burn 8 | . . . . . . . . . . . . . . . . 3 5 Destroy 10 | . . . . . . . . . . . . 1 . . 2 4 3 Blast 17 | . . . . . . . . . . . . . 1 4 2 5 5 Corrupt 1 | . . . . . . . . . . . . . . . . . 1 Smash 4 | . . . . . . . . . . . . . . 1 2 . 1 Melee Attacks 156 | . . . 1 . . 1 26 18 . 12 . 3 5 14 28 1 47 Impact 98 | . . . . . . . . . . . . 3 5 14 28 1 47 Slashing 38 | . . . 1 . . 1 26 10 . . . . . . . . . Piercing 20 | . . . . . . . . 8 . 12 . . . . . . . Sneak Attacks 10 | . . . . . . . 4 . . . . . . 2 2 . 2 Combat Hostiles 1 | . . . . . . . 1 . . . . . . . . . . Follow-up Attacks . | . . . . . . . . . . . . . . . . . . Damage Inflicted 21992 | . . 164 406 157 . 171 518 32 . 39 . 290 320 857 1775 4118 13145 Guns 12297 | . . 98 406 157 . 171 251 . . . . 237 43 119 520 2649 7646 Cannons 3611 | . . . . . . . . . . . . . 76 551 524 1035 1425 Explosions 4363 | . . 66 . . . . . . . . . . . . 285 427 3585 Melee 1536 | . . . . . . . 267 32 . 39 . 53 201 187 440 . 317 Ramming 185 | . . . . . . . . . . . . . . . 6 7 172 Kinetic 8727 | . . 40 208 50 . 73 251 . . . . 237 99 670 1044 2125 3930 Thermal 6910 | . . 66 198 107 . 98 . . . . . . 20 . . 1462 4959 Explosive 4207 | . . . . . . . . . . . . . . . 285 427 3495 Electromagnetic 427 | . . 58 . . . . . . . . . . . . . 97 272 Impact 1198 | . . . . . . . . . . . . 53 201 187 440 . 317 Slashing 299 | . . . . . . . 267 32 . . . . . . . . . Piercing 39 | . . . . . . . . . . 39 . . . . . . . Highest Corruption 75 | . . . . . . . 1 . . . . . . 1 2 . 75 Average Corruption 25 | . . . . . . . 1 . . . . . . 1 1 . 31 Corruption Purged . | . . . . . . . . . . . . . . . . . . Corruption Blocked . | . . . . . . . . . . . . . . . . . . Effects 241 | . . . . . . . 1 . . . . . . 3 5 . 232 Message Errors 44 | . . . . . . . . . . . . . . . 2 . 42 Matter Fused 54 | . . . . . . . . . . . . . . 1 2 . 51 Heat Flow Errors 26 | . . . . . . . . . . . . . . 1 . . 25 Energy Discharges 24 | . . . . . . . . . . . . . . . 1 . 23 Parts Rejected 2 | . . . . . . . . . . . . . . . . . 2 Data Loss (minor) 24 | . . . . . . . . . . . . . . 1 . . 23 Data Loss (major) 13 | . . . . . . . 1 . . . . . . . . . 12 Misfires 8 | . . . . . . . . . . . . . . . . . 8 Alerts 7 | . . . . . . . . . . . . . . . . . 7 Misdirections 22 | . . . . . . . . . . . . . . . . . 22 Weapon Failures 17 | . . . . . . . . . . . . . . . . . 17 Overload Shots . | . . . . . . . . . . . . . . . . . . Overflow Damage 1162 | . . . . . . . 61 . . . . . 109 157 300 6 529 Projectiles 305 | . . . . . . . . . . . . . . . . 1 304 Explosions 338 | . . . . . . . . . . . . . . . 160 . 178 Melee 519 | . . . . . . . 61 . . . . . 109 157 140 5 47 Knockbacks 22 | . . . . . . . . . . . . . . 1 7 6 8 Impact 7 | . . . . . . . . . . . . . . 1 5 . 1 Kinetic 15 | . . . . . . . . . . . . . . . 2 6 7 Secondary . | . . . . . . . . . . . . . . . . . . Self-Inflicted Damage 488 | . . 31 . . . . . . . . . . . . 114 51 292 Shots 8 | . . 2 . . . . . . . . . . . . 1 1 4 Rammed 9 | . . . . . . . . . . . . . . . 1 1 7 Targets Rammed 25 | . . . . . . . . . . . . . . . 1 1 23 Kicked 16 | . . . . . . . . . . . . . . . . . 16 Crushed . | . . . . . . . . . . . . . . . . . . Highest Temperature 413 | . . 66 6 . . 80 75 . . . . . 24 95 413 72 278 Average Temperature 50 | . . 38 5 . . 37 32 . . . . . 13 30 77 19 59 Received Heat Transfer 1619 | . . 42 291 . . 18 90 . . . . 26 . . 9 855 288 Effects 1 | . . . . . . . . . . . . . . . 1 . . Matter Decay 1 | . . . . . . . . . . . . . . . 1 . . Siege Activations 9 | . . . . . . . . . . . . . . . . 2 7 Total Turns 233 | . . . . . . . . . . . . . . . . 42 191 Longest Duration 47 | . . . . . . . . . . . . . . . . 26 47 Martial Activations . | . . . . . . . . . . . . . . . . . . Shielding Activations 1 | . . . . . . . . . . . . . . . . . 1 Total Turns 4 | . . . . . . . . . . . . . . . . . 4 Longest Duration 4 | . . . . . . . . . . . . . . . . . 4 Robots Disrupted . | . . . . . . . . . . . . . . . . . . Combat Hostiles . | . . . . . . . . . . . . . . . . . . Robots Corrupted 6 | . . . . . . . . . . . . . . 1 3 1 1 Combat Hostiles 1 | . . . . . . . . . . . . . . . . 1 . Parts Fried 15 | . . . . . . . . . . . . . . 6 2 2 5 Impact Corruptions 18 | . . . . . . . . . . . . . 3 5 6 1 3 Robots Melted . | . . . . . . . . . . . . . . . . . . Combat Hostiles . | . . . . . . . . . . . . . . . . . . Parts Melted 14 | . . . 1 1 . 1 . . . . . 4 . . . . 7 Heat Transferred 9387 | . . . 450 250 . 225 . . . . . . 37 . . 2146 6279 Parts Sabotaged . | . . . . . . . . . . . . . . . . . . Parts Stolen . | . . . . . . . . . . . . . . . . . . Parts Stripped . | . . . . . . . . . . . . . . . . . . Power Chain Reactions 2 | . . 1 . . . . . . . . . . . . . . 1 Alert | -11 -10 -10 -9 -9 -9 -8 -8 -7 -6 -5 -5 -5 -4 -4 -3 -2 -1 ------- Run | Yrd Mat Min Mat Min Exi Min Mat Fac Fac Fac Upp War Pro Fac Res Res Acc Maximum Alert Level 4 | . . . 1 . . . 1 . . . . . . . 1 1 4 Low Security (%) 69 | 100 100 100 92 100 . 100 91 100 100 100 . . . 100 80 64 40 Level 1 12 | . . . 7 . . . 8 . . . . . . . 19 35 11 Level 2 13 | . . . . . . . . . . . . . . . . . 34 Level 3 2 | . . . . . . . . . . . . . . . . . 5 Level 4 3 | . . . . . . . . . . . . . . . . . 8 Level 5 . | . . . . . . . . . . . . . . . . . . High Security . | . . . . . . . . . . . . . . . . . . Max Security . | . . . . . . . . . . . . . . . . . . Peak Influence 1252 | . 5 77 218 138 . 95 228 83 4 15 . . . 138 291 286 1252 Initial 80 | . . . . 78 . . . 73 . . . . . . 32 80 63 Average 198 | . . 29 63 106 . 28 70 17 . 1 . . . 43 156 142 387 Influence Increases 6120 | . 5 77 458 90 . 165 387 39 4 34 . 95 20 270 625 922 2929 Destroy 0b10 Robot/C 2300 | . . 40 340 80 . 60 40 . . . . 60 20 60 80 320 1200 Destroy 0b10 Robot/NC 210 | . . . 10 . . . 20 5 . 5 . 15 . 15 35 10 95 Destroy Leader 446 | . . 10 42 10 . 10 . . . 2 . . . 22 40 52 258 Allied During Kill 72 | . . . 31 . . . . . . . . 20 . . . . 21 Trap Triggered on 0b10 70 | . . . . . . 20 . . . . . . . 10 40 . . Successful Hack 150 | . 5 . 3 . . . 24 14 4 . . . . 16 30 . 54 Select Force Hacks 30 | . . . . . . . 30 . . . . . . . . . . Disable Machine 210 | . . 15 30 . . . 15 15 . 15 . . . 45 30 15 30 Anti-Garrison Action 400 | . . . . . . . . . . . . . . . 200 . 200 Destroy Structure 912 | . . 12 2 . . . 18 5 . 12 . . . 102 110 60 591 Partial Spotted 120 | . . . . . . 15 15 . . . . . . . 60 30 . Lose Combat Pursuer 1200 | . . . . . . 60 225 . . . . . . . . 435 480 Influence Decreases 4878 | . 5 77 256 174 118 165 224 202 4 34 . 95 20 208 544 959 1793 Entered New Map 468 | . . . . 124 118 . . 90 . . . . . . 30 63 43 Time Decay 2830 | . 5 77 196 30 . 165 224 112 4 34 . 30 20 207 494 543 689 Lost Part 911 | . . . . 20 . . . . . . . . . . 10 151 730 Lost Ally 411 | . . . 60 . . . . . . . . 65 . 1 10 202 73 Purge Threat 258 | . . . . . . . . . . . . . . . . . 258 Squads Dispatched 40 | . 1 . . . . 1 5 . . . . . . 2 5 2 24 Investigation 7 | . . . . . . . 2 . . . . . . . 1 1 3 Extermination 18 | . . . . . . . . . . . . . . 2 4 . 12 Reinforcement 10 | . 1 . . . . 1 3 . . . . . . . . 1 4 Assault 5 | . . . . . . . . . . . . . . . . . 5 Garrison . | . . . . . . . . . . . . . . . . . . Intercept . | . . . . . . . . . . . . . . . . . . Searches Triggered . | . . . . . . . . . . . . . . . . . . Construction Impeded 3 | . . . . . . 1 . . . . . . . . . . 2 Haulers Reinforced 1 | . . . . . . . . . . . . . . . . . 1 Active Scanning Responses . | . . . . . . . . . . . . . . . . . . Cargo Convoy Interrupts . | . . . . . . . . . . . . . . . . . . Stealth | -11 -10 -10 -9 -9 -9 -8 -8 -7 -6 -5 -5 -5 -4 -4 -3 -2 -1 --------- Run | Yrd Mat Min Mat Min Exi Min Mat Fac Fac Fac Upp War Pro Fac Res Res Acc Distress Signals 24 | . . . . . . . 7 . . 1 . . . . . 13 3 Communications Jammed 41 | . . . . . . . . . . 3 . . . . 14 24 . Distress Signals 41 | . . . . . . . . . . 3 . . . . 14 24 . Times Spotted 351 | . 1 2 18 4 . 7 34 6 2 8 . 50 3 9 16 70 121 Peak Tracking Total 18 | . 2 1 4 4 . 3 10 2 1 6 . 17 1 4 2 18 11 Tactical Retreats 59 | . . . . . . 2 8 3 . . . 2 2 2 3 10 27 Traps | -11 -10 -10 -9 -9 -9 -8 -8 -7 -6 -5 -5 -5 -4 -4 -3 -2 -1 ------- Run | Yrd Mat Min Mat Min Exi Min Mat Fac Fac Fac Upp War Pro Fac Res Res Acc Traps Triggered 3 | . . . . . . . . . . . . . . . . . 3 Indirectly . | . . . . . . . . . . . . . . . . . . Trap Hack Attempts 43 | . . . . . . . . 4 10 29 . . . . . . . Triggered . | . . . . . . . . . . . . . . . . . . Disarmed 1 | . . . . . . . . 1 . . . . . . . . . Reprogrammed 13 | . . . . . . . . 1 2 4 . . . 6 . . . Reused 7 | . . . . . . 2 . . . . . . . 1 4 . . Traps Extracted 6 | . . . . . . . . . 2 4 . . . . . . . Installed 9 | . . . . . . 3 . . . 2 . . . . 4 . . Triggered 7 | . . . . . . 2 . . . . . . . 1 4 . . Most Traps Carried 4 | . . 4 4 3 3 3 . . 2 4 4 4 4 4 4 . . Machines | -11 -10 -10 -9 -9 -9 -8 -8 -7 -6 -5 -5 -5 -4 -4 -3 -2 -1 ---------- Run | Yrd Mat Min Mat Min Exi Min Mat Fac Fac Fac Upp War Pro Fac Res Res Acc Machines Disabled 14 | . . 1 2 . . . 1 1 . 1 . . . 3 2 1 2 Max in Single Turn 2 | . . 1 1 . . . 1 1 . 1 . . . 2 1 1 1 Garrison Access 12 | . . . . . . . 1 1 1 1 . . . 2 1 3 2 Machines Repaired . | . . . . . . . . . . . . . . . . . . Machines Dismantled . | . . . . . . . . . . . . . . . . . . Machines Sabotaged . | . . . . . . . . . . . . . . . . . . Overloaded Fab Kills . | . . . . . . . . . . . . . . . . . . Hacking | -11 -10 -10 -9 -9 -9 -8 -8 -7 -6 -5 -5 -5 -4 -4 -3 -2 -1 --------- Run | Yrd Mat Min Mat Min Exi Min Mat Fac Fac Fac Upp War Pro Fac Res Res Acc Machines Accessed 67 | . 1 . 1 . 1 . 7 6 3 10 . 6 . 8 10 1 13 Terminals 34 | . 1 . . . . . 5 3 1 5 . . . 6 6 . 7 Fabricators 8 | . . . . . . . . 2 1 1 . . . . 2 . 2 Repair Stations 3 | . . . 1 . . . . . . . . . . . . . 2 Recycling Units 5 | . . . . . . . 1 . . 3 . . . . 1 . . Scanalyzers . | . . . . . . . . . . . . . . . . . . Garrison Access 10 | . . . . . . . 1 1 1 1 . . . 2 1 1 2 Total Hacks 189 | . 2 . 1 . 1 . 19 12 7 25 . 17 . 37 31 4 33 Successful 114 | . 1 . 1 . 1 . 8 3 4 22 . 17 . 22 15 . 20 Failed 75 | . 1 . . . . . 11 9 3 3 . . . 15 16 4 13 Catastrophic 5 | . . . . . . . 1 1 . . . . . 2 . . 1 Database Lockouts . | . . . . . . . . . . . . . . . . . . Manual 79 | . 2 . 1 . 1 . 13 8 4 13 . 1 . 13 14 1 8 Terminals 121 | . 2 . . . . . 14 5 4 19 . . . 34 22 . 21 Fabricators 14 | . . . . . . . . 5 2 1 . . . . 3 . 3 Repair Stations 4 | . . . 1 . . . . . . . . . . . . . 3 Recycling Units 9 | . . . . . . . 2 . . 4 . . . . 3 . . Scanalyzers . | . . . . . . . . . . . . . . . . . . Garrison Access 23 | . . . . . . . 3 2 1 1 . . . 3 3 4 6 Terminal Hacks 68 | . . . . . 1 . 3 . 1 14 . 17 . 16 6 . 10 Record 7 | . . . . . . . . . . . . 7 . . . . . Part Schematic 2 | . . . . . . . . . . 2 . . . . . . . Prototype ID Bank 9 | . . . . . . . . . . . . 9 . . . . . Open Door 1 | . . . . . . . . . . . . 1 . . . . . Level Access Points 2 | . . . . . . . . . . . . . . 1 1 . . Branch Access Points 5 | . . . . . . . 1 . . 1 . . . 1 1 . 1 Emergency Access Points 2 | . . . . . . . . . . 1 . . . 1 . . . Machine Index 2 | . . . . . . . . . . . . . . 1 . . 1 Terminal Index 2 | . . . . . . . . . . 1 . . . . . . 1 Garrison Index 1 | . . . . . . . . . . . . . . . 1 . . Alert Level 5 | . . . . . . . 1 . . 1 . . . 2 . . 1 Unreport Threat 3 | . . . . . . . . . . 1 . . . . . . 2 Locate Traps 6 | . . . . . . . 1 . 1 1 . . . 2 1 . . Reprogram Traps 1 | . . . . . . . . . . . . . . 1 . . . Dispatch Records 1 | . . . . . . . . . . . . . . 1 . . . Surveillance Status 2 | . . . . . . . . . . 1 . . . 1 . . . Patrol Status 1 | . . . . . . . . . . 1 . . . . . . . Investigation Status 1 | . . . . . . . . . . 1 . . . . . . . Recall Investigation 3 | . . . . . . . . . . 1 . . . 1 1 . . Recall Extermination 3 | . . . . . . . . . . . . . . 1 1 . 1 Recall Assault 2 | . . . . . . . . . . . . . . . . . 2 Hauler Manifests 1 | . . . . . . . . . . . . . . 1 . . . Registered Components 1 | . . . . . . . . . . . . . . 1 . . . Zone Layout 4 | . . . . . . . . . . 2 . . . 1 . . 1 Proto ID Catalog 1 | . . . . . 1 . . . . . . . . . . . . Fabricator Hacks 3 | . . . . . . . . . . . . . . . . . 3 Network Status 1 | . . . . . . . . . . . . . . . . . 1 Load Schematic 1 | . . . . . . . . . . . . . . . . . 1 Build 1 | . . . . . . . . . . . . . . . . . 1 Repair Station Hacks 2 | . . . . . . . . . . . . . . . . . 2 Scan Component 1 | . . . . . . . . . . . . . . . . . 1 Refit 1 | . . . . . . . . . . . . . . . . . 1 Recycling Unit Hacks 6 | . . . . . . . 1 . . 3 . . . . 2 . . Report Inventory 4 | . . . . . . . 1 . . 3 . . . . . . . Retrieve Matter 1 | . . . . . . . . . . . . . . . 1 . . Retrieve Components 1 | . . . . . . . . . . . . . . . 1 . . Scanalyzer . | . . . . . . . . . . . . . . . . . . Garrison Access Hacks 7 | . . . . . . . 1 1 1 1 . . . 2 . . 1 Seal Access 7 | . . . . . . . 1 1 1 1 . . . 2 . . 1 Unauthorized Hacks 28 | . 1 . 1 . . . 3 2 2 4 . . . 4 7 . 4 Terminals 17 | . 1 . . . . . 2 . 2 2 . . . 4 3 . 3 Assimilate 4 | . . . . . . . . . 1 . . . . 1 1 . 1 Botnet 13 | . 1 . . . . . 2 . 1 2 . . . 3 2 . 2 Fabricators 5 | . . . . . . . . 2 . 1 . . . . 2 . . Fabnet 5 | . . . . . . . . 2 . 1 . . . . 2 . . Repair Stations 1 | . . . 1 . . . . . . . . . . . . . . Mechanics 1 | . . . 1 . . . . . . . . . . . . . . Recycling Units 3 | . . . . . . . 1 . . 1 . . . . 1 . . Monitor 1 | . . . . . . . . . . 1 . . . . . . . Mask 1 | . . . . . . . . . . . . . . . 1 . . Tunnel 1 | . . . . . . . 1 . . . . . . . . . . Scanalyzers . | . . . . . . . . . . . . . . . . . . Garrison Access 2 | . . . . . . . . . . . . . . . 1 . 1 Jam 2 | . . . . . . . . . . . . . . . 1 . 1 Data Cores Recovered . | . . . . . . . . . . . . . . . . . . Used . | . . . . . . . . . . . . . . . . . . Hacking Detections 46 | . 1 . . . . . 5 5 2 6 . . . 6 9 1 11 Full Trace Events 4 | . . . . . . . 1 . . . . . . . . 1 2 Feedback Events 1 | . . . . . . . 1 . . . . . . . . . . Corruption 1 | . . . . . . . 1 . . . . . . . . . . Feedback Blocked 1 | . . . . . . . . . . . . . . . . 1 . Robot Schematics Acquired . | . . . . . . . . . . . . . . . . . . Robots Built . | . . . . . . . . . . . . . . . . . . Authchips . | . . . . . . . . . . . . . . . . . . Time . | . . . . . . . . . . . . . . . . . . Total Robot Build Rating . | . . . . . . . . . . . . . . . . . . Part Schematics Acquired 2 | . . . . . . . . . . 2 . . . . . . . Parts Built 1 | . . . . . . . . . . . . . . . . . 1 Authchips . | . . . . . . . . . . . . . . . . . . Time 31 | . . . . . . . . . . . . . . . . . 31 Total Part Build Rating 5 | . . . . . . . . . . . . . . . . . 5 Parts Repaired . | . . . . . . . . . . . . . . . . . . Time . | . . . . . . . . . . . . . . . . . . Parts Recycled . | . . . . . . . . . . . . . . . . . . Recycled Matter . | . . . . . . . . . . . . . . . . . . Retrieved Matter . | . . . . . . . . . . . . . . . . . . Retrieved Components . | . . . . . . . . . . . . . . . . . . Parts Scanalyzed . | . . . . . . . . . . . . . . . . . . Part Schematics Acquired . | . . . . . . . . . . . . . . . . . . Parts Damaged . | . . . . . . . . . . . . . . . . . . Bothacking | -11 -10 -10 -9 -9 -9 -8 -8 -7 -6 -5 -5 -5 -4 -4 -3 -2 -1 ------------ Run | Yrd Mat Min Mat Min Exi Min Mat Fac Fac Fac Upp War Pro Fac Res Res Acc Used RIF Installer . | . . . . . . . . . . . . . . . . . . Robots Hacked 22 | . . . . . . . . . . . . 1 . . . 18 3 Non-combat . | . . . . . . . . . . . . . . . . . . Combat 21 | . . . . . . . . . . . . 1 . . . 18 2 Robot Hacks Applied . | . . . . . . . . . . . . . . . . . . Manual 1 | . . . . . . . . . . . . . . . . . 1 Relay Couplers Released 4 | . . . . . . . . . . . . . . . . 1 3 Machine Destruction 1 | . . . . . . . . . . . . . . . . 1 . Programmers 3 | . . . . . . . . . . . . . . . . . 3 Fabnet Peak Effective % 6 | . . . . . . . . . 6 2 2 2 3 3 1 6 2 Autooverrided 21 | . . . . . . . . . . . . 1 . . . 18 2 Robots Rewired 5 | . . . . . . . . . . . . 5 . . . . . Allies Hacked 3 | . . . . . . . . . . . . . . 1 . . 2 Hacks Repelled . | . . . . . . . . . . . . . . . . . . Allies | -11 -10 -10 -9 -9 -9 -8 -8 -7 -6 -5 -5 -5 -4 -4 -3 -2 -1 -------- Run | Yrd Mat Min Mat Min Exi Min Mat Fac Fac Fac Upp War Pro Fac Res Res Acc Total Allies 34 | . . 3 . . . . . . 1 . . 6 . 1 1 18 4 Largest Group 6 | . . 3 3 . . . . . 1 1 . 6 . 1 1 3 1 Highest-Rated Group 265 | . . 40 40 . . . . . 10 10 . 265 . 10 45 172 219 Highest-Rated Ally 219 | . . 16 16 . . . . . 10 10 . 64 . 10 45 82 219 Total Orders 10 | . . . . . . . . . . . . 3 . 2 2 . 3 STAY 5 | . . . . . . . . . . . . 2 . 1 1 . 1 FOLLOW 3 | . . . . . . . . . . . . 1 . 1 1 . . EXPLORE 2 | . . . . . . . . . . . . . . . . . 2 Ally Attacks 122 | . . . 47 . . . . . . . . 19 . . . 39 17 Total Damage 3521 | . . . 476 . . . . . . . . 958 . . . 904 1183 Kills 25 | . . . 11 . . . . . . . . 5 . . . 2 7 Allies Corrupted 1 | . . . . . . . . . . . . . . . . . 1 Allies Melted 2 | . . . . . . . . . . . . 1 . . . 1 . Intel | -11 -10 -10 -9 -9 -9 -8 -8 -7 -6 -5 -5 -5 -4 -4 -3 -2 -1 ------- Run | Yrd Mat Min Mat Min Exi Min Mat Fac Fac Fac Upp War Pro Fac Res Res Acc Active Infowar (turns) 11678 | . . . . . 8 . 433 568 152 476 122 831 839 641 1307 1648 4653 Optics 10669 | . . . . . . . . . 152 476 122 831 839 641 1307 1648 4653 Sensors 8 | . . . . . 8 . . . . . . . . . . . . Machine Analysis 2554 | . . . . . . . . . . . . . . 638 1307 609 . Cloaking 486 | . . . . . . . . . . . . . . . . . 486 Jamming 577 | . . . . . . . . . . 55 . . . . 467 55 . ECM 5637 | . . . . . . . 433 568 152 421 122 829 839 641 711 11 910 Robot Analysis Total . | . . . . . . . . . . . . . . . . . . Derelict Logs Recovered 4 | . . 1 . . . . . . . . 2 . 1 . . . . Drone Launches 2 | . . . . . . . . . . . . . . . . . 2 Drone Recoveries . | . . . . . . . . . . . . . . . . . . Exploration | -11 -10 -10 -9 -9 -9 -8 -8 -7 -6 -5 -5 -5 -4 -4 -3 -2 -1 ------------- Run | Yrd Mat Min Mat Min Exi Min Mat Fac Fac Fac Upp War Pro Fac Res Res Acc Turns Passed 14177 | 84 430 204 530 73 266 471 882 568 152 476 122 831 839 641 1307 1648 4653 Spaces Moved 12251 | 49 253 115 247 20 232 363 702 819 250 538 237 918 856 957 1527 948 3220 Core 128 | 6 . . . . . . . . . . . . . . . 95 27 Treads 2595 | 43 253 115 247 20 116 . . . . . . . . . 28 725 1048 Legs 5 | . . . . . . . . . . . . . . . . . 5 Wheels 119 | . . . . . . . . . . . . . . . . . 119 Hover . | . . . . . . . . . . . . . . . . . . Flight 9404 | . . . . . 116 363 702 819 250 538 237 918 856 957 1499 128 2021 Fastest Speed 32 | 50 160 160 160 170 50 50 50 50 50 50 50 50 50 50 39 32 37 Average Speed 72 | 146 160 160 165 170 110 50 50 50 50 50 50 50 50 50 41 131 87 Slowest Speed 1700 | 160 160 160 170 170 170 50 425 50 50 50 50 50 50 150 157 250 1700 Overloaded Moves 27 | . . . . . . . . . . . . . . . . 27 . Propulsion Burnouts . | . . . . . . . . . . . . . . . . . . Robots Hopped 44 | . . . . . . 12 6 . 1 1 . 2 . 3 3 4 12 Potential Cave-ins 12 | . . . . . . . . . . . . . . . . 3 9 Cave-ins Triggered 1 | . . . . . . . . . . . . . . . . . 1 Exploration Rate (%) 36 | 4 30 39 22 7 43 55 62 21 8 12 49 83 73 29 33 43 48 Regions Visited 17 Branch Regions 7 Pre-discovered Areas 3 | . . . . . . . 1 . . . 1 . 1 . . . . Known Exits Taken 10 | . . . . . 1 1 1 . . 1 1 1 1 1 1 1 . Unknown Exits Taken 7 | 1 1 1 1 1 . . . 1 1 . . . . . . . . Scrap Searched 2 | . . . . . . . . . . . . . 2 . . . . Spaces Dug 127 | . . . . . . 1 18 6 . 6 . . 7 16 16 2 55 Terrain Destroyed 469 | . . 12 . . . 1 19 6 . 6 . . 7 66 52 35 265 Melee 101 | . . . . . . 1 18 6 . 6 . . 3 12 16 1 38 Projectile 73 | . . . . . . . 1 . . . . . 4 8 8 24 28 AOE 295 | . . 12 . . . . . . . . . . . 46 28 10 199 Terrain Rammed . | . . . . . . . . . . . . . . . . . . Walls Destroyed . | . . . . . . . . . . . . . . . . . . Machines Disabled . | . . . . . . . . . . . . . . . . . . Actions | -11 -10 -10 -9 -9 -9 -8 -8 -7 -6 -5 -5 -5 -4 -4 -3 -2 -1 --------- Run | Yrd Mat Min Mat Min Exi Min Mat Fac Fac Fac Upp War Pro Fac Res Res Acc Total 16488 | 58 270 128 324 35 247 617 1146 945 273 724 239 1273 1244 1064 2115 1239 4547 Wait 3066 | . 4 . 23 . . 245 366 86 8 134 2 321 364 56 474 131 852 Move 12151 | 48 252 114 246 19 231 340 690 818 247 535 236 914 855 950 1520 939 3197 Hop 39 | . . . . . . 10 5 . 1 1 . 1 . 3 3 4 11 Pick Up 146 | 4 3 8 10 1 4 . 15 6 1 2 . 2 1 3 15 33 38 Fast Attach 111 | 6 1 . 4 1 1 . 6 . . 2 . 3 2 2 4 26 53 Attach 96 | . . . 1 1 2 . . 4 2 1 . . . 4 10 19 52 Detach 32 | . . . . . . . . . . 1 . 1 . 4 2 13 11 Swap 79 | . 1 . 5 . . 2 13 4 4 3 1 1 . 4 11 7 23 Drop 134 | . 1 2 11 . 9 4 14 5 . 2 . 5 3 3 19 16 40 Fire 387 | . 8 4 23 13 . 12 11 . . . . 10 14 21 24 49 198 Melee 156 | . . . 1 . . 1 26 18 . 12 . 3 5 14 28 1 47 Ram 1 | . . . . . . . . . . . . . . . . . 1 Kick 16 | . . . . . . . . . . . . . . . . . 16 Crush 9 | . . . . . . . . . . . . . . . 1 1 7 Escape Stasis . | . . . . . . . . . . . . . . . . . . Rewire 13 | . . . . . . . . . . . . 12 . . . . 1 Trap 52 | . . . . . . 3 . 4 10 31 . . . . 4 . . Miscellaneous . | . . . . . . . . . . . . . . . . . . Route ------- -11/Scrapyard -10/Materials -10/Mines (discovered 2 exits: *Mat x2) -9/Materials -9/Mines -9/Exiles -8/Mines -8/Materials -7/Factory (discovered 2 exits: *Fac / Sto) -6/Factory -5/Factory (discovered 5 exits: *Fac / *Upp x2 / Ext x2) -5/Upper Caves (discovered 2 exits: *Upp / *War) -5/Warlord -4/Proximity Caves -4/Factory (discovered 7 exits: *Res x4 / *Upp x2 / Arm) -3/Research (discovered 5 exits: *Res x3 / *Tes x2) -2/Research (discovered 2 exits: *Acc x2) -1/Access (discovered 1 exit: Com) History --------- Turn | Location | Event 3 | -11/Scrapyard | Discovered new exit (range 16) 85 | -11/Scrapyard | Entered Materials 306 | -10/Materials | Build established: Mutant 494 | -10/Materials | Discovered new exit (range 7) 515 | -10/Materials | Entered Mines 625 | -10/Mines | Found a hidden stash of uninstalled traps 684 | -10/Mines | Discovered new exit (range 14) 698 | -10/Mines | Assisted by bots powering up and referring to "LRC-V3" 712 | -10/Mines | Discovered new exit (range 5) 719 | -10/Mines | Entered Materials 719 | -9/Materials | Accompanied by 3 allies 719 | -9/Materials | Evolved 2 slots: Propulsion x2 1234 | -9/Materials | Discovered new exit (range 9) 1249 | -9/Materials | Entered Mines 1313 | -9/Mines | Deemed a non-threat by the Exiles lab entrance 1315 | -9/Mines | Discovered new exit (range 5) 1322 | -9/Mines | Entered Exiles 1345 | -9/Exiles | Discovered new exit (range 15) 1365 | -9/Exiles | Met 8R-AWN 1392 | -9/Exiles | Met EX-HEX 1441 | -9/Exiles | Met EX-BIN 1465 | -9/Exiles | Aligned with FarCom system 1467 | -9/Exiles | Given EX-Vault access code 1508 | -9/Exiles | Opened EX-Vault 1522 | -9/Exiles | Found Flying Fortress v7 1535 | -9/Exiles | Warned to stay clear of 0b10 Research branches 1588 | -9/Exiles | Identified exit to Mines 1588 | -9/Exiles | Left Exiles lab with Flying Fortress v7 1588 | -9/Exiles | Entered Mines 2056 | -8/Mines | Discovered new exit (range 8) 2059 | -8/Mines | Identified exit to Materials 2059 | -8/Mines | Entered Materials 2059 | -8/Materials | Evolved 2 slots: Utility x2 2936 | -8/Materials | Discovered new exit (range 12) 2941 | -8/Materials | Identified exit to Factory 2941 | -8/Materials | Entered Factory 2941 | -7/Factory | Evolved 2 slots: Utility x2 2942 | -7/Factory | Identified exit to Storage 3314 | -7/Factory | Build established: Hacker-Mutant 3504 | -7/Factory | Discovered new exit (range 5) 3509 | -7/Factory | Entered another Factory area 3509 | -6/Factory | Evolved 2 slots: Utility x2 3575 | -6/Factory | Discovered new exit (range 13) 3661 | -6/Factory | Entered another Factory area 3661 | -5/Factory | Accompanied by 1 ally 3661 | -5/Factory | Evolved 2 slots: Utility x2 3791 | -5/Factory | Discovered new exit (range 20) 3841 | -5/Factory | Identified exit to Factory 3866 | -5/Factory | Identified exit to Upper Caves 3866 | -5/Factory | Identified exit to Extension 4137 | -5/Factory | Entered Upper Caves 4159 | -5/Upper Caves | Spotted B-75 Beast 4207 | -5/Upper Caves | Identified exit to Upper Caves 4238 | -5/Upper Caves | Encountered a Warlord checkpoint 4259 | -5/Upper Caves | A Derelict revealed a hidden shortcut to "reach the base" 4259 | -5/Upper Caves | Identified exit to Warlord 4259 | -5/Upper Caves | Entered Warlord 4499 | -5/Warlord | Visited the Vortex Lab 4519 | -5/Warlord | Warlord's base attacked by MAIN.C 4745 | -5/Warlord | Found Signal Generator 4753 | -5/Warlord | Met Warlord 4796 | -5/Warlord | Spotted B-86 Titan 4869 | -5/Warlord | Warlord forces counterattacked 4939 | -5/Warlord | Spotted Striker 4978 | -5/Warlord | Spotted Executioner 5010 | -5/Warlord | Found Prototype Processor 5010 | -5/Warlord | Identified Exp. Targeting Computer 5017 | -5/Warlord | Lost 8 allies 5019 | -5/Warlord | Spotted Executioner 5080 | -5/Warlord | Discovered new exit (range 15) 5090 | -5/Warlord | Identified exit to Proximity Caves 5090 | -5/Warlord | Entered Proximity Caves 5099 | -4/Proximity Caves | Lost 12 allies 5261 | -4/Proximity Caves | Received a Behemoth hack from an annoying Tinkerer 5427 | -4/Proximity Caves | Spotted B-86 Titan 5792 | -4/Proximity Caves | Attracted the attention of an 0b10 checkpoint 5818 | -4/Proximity Caves | Learned location of Quarantine (-2) 5897 | -4/Proximity Caves | Discovered exit to Factory (range 5) 5929 | -4/Proximity Caves | Entered Factory 5929 | -4/Factory | Evolved 2 slots: Utility x1, Weapon x1 5942 | -4/Factory | Identified exit to Upper Caves 5942 | -4/Factory | Identified exit to Armory 5978 | -4/Factory | Identified exit to Research 6227 | -4/Factory | Build established: Hacker-Ninja 6570 | -4/Factory | Entered Research 6570 | -3/Research | Evolved 2 slots: Propulsion x1, Utility x1 6900 | -3/Research | Discovered new exit (range 14) 7308 | -3/Research | Identified exit to Testing 7308 | -3/Research | Identified exit to Research 7475 | -3/Research | Spotted B-86 Titan 7749 | -3/Research | Build established: Wizard-Ninja 7877 | -3/Research | Entered another Research area 7877 | -2/Research | Warlord forces began assault on 0b10 7877 | -2/Research | Evolved 2 slots: Utility x1, Weapon x1 7987 | -2/Research | Research machine network offline 8013 | -2/Research | Borebot progress halted 8155 | -2/Research | Build established: Wizard-Tank 8243 | -2/Research | Spotted Executioner 8289 | -2/Research | Destroyed Executioner 8311 | -2/Research | Spotted Executioner 8323 | -2/Research | Destroyed Executioner 8325 | -2/Research | Found Exp. Targeting Computer 8422 | -2/Research | Spotted B-90 Cyclops 8439 | -2/Research | Spotted Executioner 8445 | -2/Research | Spotted Executioner 8483 | -2/Research | Core integrity fell below 50% 8548 | -2/Research | Lost 20 parts (3p3n9u5w) 8579 | -2/Research | Lost 3 allies 8643 | -2/Research | Spotted Executioner 8650 | -2/Research | Spotted Executioner 8655 | -2/Research | Destroyed Executioner 8683 | -2/Research | Borebot progress halted 8702 | -2/Research | Lost 3 allies 8780 | -2/Research | Spotted Striker 8801 | -2/Research | Spotted 5L-0TS(L) 8803 | -2/Research | Core integrity fell below 20% 8816 | -2/Research | Destroyed Striker 8858 | -2/Research | Spotted Striker 8870 | -2/Research | Build established: Scavenger-Tank 8952 | -2/Research | Spotted Striker 9057 | -2/Research | Lost 3 parts (2u1w) 9240 | -2/Research | Discovered new exit (range 7) 9342 | -2/Research | Discovered new exit (range 13) 9382 | -2/Research | Given Cave Seal Controls access code 9523 | -2/Research | Identified exit to Access 9525 | -2/Research | Entered Access 9525 | -1/Access | Evolved 2 slots: Power x1, Utility x1 9652 | -1/Access | P-80 Master assimilated allied G-73 Enforcer 9965 | -1/Access | Found Prototype Processor 9965 | -1/Access | Identified Exp. Melee Analysis Suite 10204 | -1/Access | Build established: Hacker-Tank 10279 | -1/Access | System corruption reached 10% 11084 | -1/Access | Destroyed 7 combat bots 11090 | -1/Access | Lost 6 parts (1p1n3u1w) 11371 | -1/Access | Build established: Scavenger-Tank 12055 | -1/Access | Lost 19 parts (3p4n6u6w) 12066 | -1/Access | System corruption reached 30% 12235 | -1/Access | Lost 8 parts (2p1n1u4w) 12404 | -1/Access | Core integrity fell below 50% 12430 | -1/Access | Lost 6 parts (1p1n3u1w) 12455 | -1/Access | Found Prototype Launcher 12455 | -1/Access | Identified Ragnarok Missile Launcher 12525 | -1/Access | First assault squad dispatched 12529 | -1/Access | Found Hvy. Reflective Plating 12702 | -1/Access | Build established: Hacker-Mutant 12721 | -1/Access | Fabricated Imp. System Shield (x1) 12834 | -1/Access | Identified exit to Command 13017 | -1/Access | Lost 3 parts (3u) 13038 | -1/Access | Build established: Wizard-Mutant 13353 | -1/Access | Crushed by falling debris 13404 | -1/Access | Lost 5 parts (2p3u) 13548 | -1/Access | Found Prototype Launcher 13548 | -1/Access | Identified Mni. Smartbomb Launcher 13655 | -1/Access | Local machine network offline 13714 | -1/Access | Core integrity fell below 20% 13740 | -1/Access | Spotted B-99 Colossus 13745 | -1/Access | Befriended a Behemoth using the annoying Tinkerer's hack 13765 | -1/Access | Found Prototype Launcher 13765 | -1/Access | Identified Gui. Micro-nuke Launcher 13768 | -1/Access | Found Fusion Bomb Launcher 13779 | -1/Access | Lost 11 parts (1p2n4u4w) 14027 | -1/Access | Build established: Hacker-Mutant 14178 | -1/Access | Destroyed by B-74 Champion with Powered Hammer Last Messages --------------- 14123_ Slug penetrates Wall. 14134_ System corrupted: Energy discharge (-35). 14140_ Antigrav Array destroyed. 14141_ Impulse Thruster Array destroyed. 14142_ Imp. Hacking Suite destroyed. 14142_ Critical hit (Burn: +37). 14147_ ALERT: Potential suspicious activity detected, Programmers report to Access Zone 1G. 14161_ Kicked B-74 Champion out of the way. 14163_ Kicked B-74 Champion. 14165_ System corrupted: Heat flow error (+290). 14165_ Kicked B-74 Champion. 14166_ Kicked B-74 Champion out of the way. 14167_ Kicked B-74 Champion. 14172_ Com. HERF Cannon destroyed. 14172_ System corrupted by crushing effect (+3). 14173_ Kicked B-74 Champion out of the way. 14175_ Kicked B-74 Champion. [Achievement: Tester] Map ----- +----------------------------------------------------+ | ## # ## ##?? | | ## " # # ??? | | ########### """" # / ]???? | | #?????#""""" ""#! # #?? | | #?????# """"" ""# #?###?? | | #?????# """" G# #?????? | | #?????# " ""# ]#?????? | | #?????# ! ""# #?????? | | #?????# ##/###?###?? | | ##????# # h # ] # | | #################+#+####h" + # | | #??# # # | | #??##g##?? !# | | #???# #????? # | | ^ #???# #???????? | | #???#h#???????? | | #???# #???????? | | #####################???#g#???????? | | ????????????????????????#g#???????? | | ????????????????????????#g#???????? | | ????????????????????????# #???????? | | ????????????????????????#g#???????? | | ????????????????????????# #???????? | | ????????????????????????#g#???????? | | ????????????????????????#b#???????? | | ????????????????????????#@#???????? | | ????????????????????????#b#???????? | | ????????????????????????+ +???????? | | ????????????????????????# #???????? | | ????????????????????????# #???????? | | ????????????????????????+ #???????? | | ????????????????????????# #???????? | | ????????????????????????# #???????? | | ????????????????????????#R#???????? | | ????????????????????????# #???????? | | ????????????????????????# #???????? | | ????????????????????????? ????????? | | ????????????????????????? ????????? | | ????????????????????????? ????????? | | ????????????????????????? ????????? | | ????????????????????????? ????????? | | ????????????????????????? ????????? | | ????????????????????????? ????????? | | ????????????????????????? ????????? | | ????????????????????????? ????????? | | ??????????????????????????????????? | | ??????????????????????????????????? | | ??????????????????????????????????? | | ??????????????????????????????????? | | ??????????????????????????????????? | +----------------------------------------------------+ Best States ------------- Heat Dissipation 144 Energy Generation 45 Energy Capacity 620 Matter Stores 450 Matter Capacity 450 Sight Range 20 Robot Scan Range 14 Terrain Scan Density 10 ECM Strength 2 Jamming Range 12 Cloak Strength 4 Additional Mass Support 9 Armor Coverage 1200 Resistance: KI 20 Resistance: TH 25 Core Shielding 30 Evasion (%) 72 Targeting Accuracy 12 Melee Accuracy 5 Target Analysis 8 Recoil Reduction 5 Offensive Hacking 62 Defensive Hacking 26 Trap Extractor Capacity 6 Item Schematics ----------------- Impact Mace | -5/Factory | Hacked Imp. System Shield | -5/Factory | Hacked Robot Schematics ------------------ None Fabricated ------------ Imp. System Shield | x1 | -1/Access Repaired ---------- Nothing Alien Tech Used ----------------- None Achievements -------------- Batter Up Tester Challenges ------------ None Game ------ Seed BattlePropulsionTelecube Manual? 0 Play Time 04:35:13 Cumulative 109.2 hours Start 2025.09.02 @ 14:23:46 End 2025.09.04 @ 17:29:49 Sessions 13 Manual Loads 0 Difficulty Rogue Special Mode None Game No. 56 Rogue 51 Adventurer 5 Explorer 0 Win Type - Total 2 Types 1/0/1/0/0/0/0/0/0/0 Lore% 59 Gallery% 50 Achievement% 48 Wizard Run 0 Options --------- Layout 1 ASCII 0 Keyboard 0 Movement Numpad Keybinds 1 Fullscreen 1 Font 24/Smallcaps Map View 50x35 Zoom Use 0% Tactical HUD 1 Map Filters NONE Filters NONE Steam 1 RUN: 32e964b6-1c60-4840-a81c-0a8e9d71845c